[Event "European Women-ch 2023"]
[Site "Petrovac"]
[Date "2023.03.23"]
[Round "6.21"]
[White "Krasteva, Beloslava"]
[Black "Spalir, Monika"]
[Result "1-0"]
[ECO "D14"]
[WhiteElo "2292"]
[BlackElo "2125"]
[Annotator "TA"]
[PlyCount "149"]
[EventDate "2023.03.15"]
[EventType "swiss"]
[EventCountry "MNE"]
[SourceTitle "playchess.com"]
[Source "ChessBase"]
[SourceQuality "1"]
[TimeControl "40/5400+30:1800+30"]

{[%evp 22,148,15,13,10,13,15,18,35,0,0,0,8,0,0,0,0,0,0,0,0,-7,21,23,23,33,25,34,40,0,106,108,95,106,98,104,142,139,272,118,118,118,129,118,138,135,128,108,155,146,162,157,172,129,164,131,167,141,145,145,199,183,293,283,406,419,413,410,430,403,397,383,593,599,624,614,618,616,632,690,686,623,650,641,641,639,603,603,1272,1310,4914,2403,1099,364,4960,1646,1521,1587,844,1518,893,886,818,754,798,783,779,758,690,690,1002,491,29955,29963,29963,29965,29964,6079,29966,29969,29994,29995,29995,29996,29998,29998,29998,29999,29999]} 1. d4 {[%emt 0:00:06]} d5 {[%emt 0:00:04]} 2. c4 {[%emt 0:00:10]} c6 {[%emt 0:00:03]} 3. cxd5 {[%emt 0:00:14]} cxd5 {[%emt 0:00:06]} 4. Bf4 {[%emt 0:00:07]} Nf6 {[%emt 0:00:44]} 5. Nc3 {[%emt 0:00:37]} Nc6 {[%emt 0:00:33]} 6. e3 {[%emt 0:00:11]} Bf5 {[%emt 0:02:49]} 7. Qb3 {[%emt 0:00:24]} Na5 {[%emt 0:00:44]} 8. Qa4+ {[%emt 0:00:14]} Bd7 {[%emt 0:00:43]} 9. Qc2 {[%emt 0:00:14]} Rc8 {[%emt 0:01:59]} 10. Bd3 {[%emt 0:00:38]} e6 {[%emt 0:01:40]} 11. Nf3 {[%emt 0:01:03]} b5 {[%emt 0:01:22]} 12. a3 {[%emt 0:01:00]} (12. Bxb5 $2 Bxb5 13. Ne5 Ne4 $19) 12... Be7 {[%emt 0:00:27]} 13. O-O {[%emt 0:02:26]} (13. Bxb5 $2 Bxb5 14. Nd2 O-O $19) 13... O-O {[%emt 0:00:43]} 14. Ne5 {[%emt 0:01:43]} (14. Bxb5 $2 Bxb5 15. Rfc1 Ne4 $19) 14... Be8 {[%emt 0:01:20] The position is equal.} 15. Qe2 {[%emt 0:01:58]} (15. Bxb5 $2 Bxb5 16. Rfe1 Ne4 $19) 15... a6 $1 {[%emt 0:00:20]} 16. Rac1 {[%emt 0:30:50]} Nc4 {[%emt 0:01:35]} 17. a4 {[%emt 0:05:37]} b4 {[%emt 0:08:08]} 18. Nb1 {[%emt 0:00:28][%cal Bc3b1,Bb1d2,Bd2f3,Bf3e5][%mdl 32]} Bxa4 {[%emt 0:01:53]} 19. Nxc4 {[%emt 0:01:33]} dxc4 {[%emt 0:00:10]} 20. Bxc4 {[%emt 0:00:04]} a5 {[%emt 0:02:18]} 21. Nd2 {[%emt 0:01:43]} Qd7 {[%emt 0:04:35]} 22. Ra1 {[%emt 0:05:07]} Ra8 {[%emt 0:04:39]} 23. Nf3 {[%emt 0:06:22]} Rfc8 {[%emt 0:02:40][%cal Oc8c4]} 24. Ne5 {[%emt 0:01:07]} Qe8 {[%emt 0:00:10]} 25. Bg3 {[%emt 0:12:18]} Nd7 {[%emt 0:04:06]} 26. Rxa4 $16 {[%emt 0:04:12]} (26. Nxf7 Kxf7 27. Bxe6+ (27. Rxa4 $2 Rxc4 $17 {[%mdl 64] Decoy}) 27... Kxe6 $17) 26... Nxe5 {[%emt 0:00:16]} 27. Bb5 $36 {[%emt 0:00:12][%mdl 2048] White is in control.} Nd7 {[%emt 0:00:15]} 28. Rfa1 {[%emt 0:04:37] White is more active.} b3 {[%emt 0:05:34]} 29. h3 {[%emt 0:02:59]} (29. Rxa5 $2 {perishes.} Rxa5 30. Rxa5 Rc1+ $19) 29... Bb4 {[%emt 0:11:38] [#]} (29... Qd8 $16) 30. Qd3 {[%emt 0:01:30]} (30. Qf3 $1 $18 {is the precise move to win.} Rab8 31. Bxb8 Rxb8 32. Qc6) 30... Qe7 {[%emt 0:04:01]} 31. Qxb3 {[%emt 0:01:05]} Nb6 {[%emt 0:00:39]} 32. R4a2 {[%emt 0:00:05][%cal Ba4a2,Ba2a1,Ba1c1][%mdl 32]} Qg5 {[%emt 0:00:53]} 33. Be2 {[%emt 0:00:49]} Ra7 {[%emt 0:02:14]} 34. Rd1 {[%emt 0:01:06]} Nd5 {[%emt 0:01:53]} (34... Qe7 $142 35. e4 a4) 35. Raa1 {[%emt 0:01:00]} Rd7 {[%emt 0:05:45]} 36. Rac1 {[%emt 0:01:43]} Rdd8 {[%emt 0:00:37]} 37. h4 {[%emt 0:01:20]} Qg6 {[%emt 0:01:09]} 38. Qd3 {[%emt 0:01:41]} Qf6 {[%emt 0:00:08]} 39. Qe4 {[%emt 0:01:31]} Qh6 {[%emt 0:02:02]} 40. h5 {[%emt 0:00:00]} Rf8 {[%emt 0:00:00]} (40... g6 $16 41. hxg6 hxg6) 41. Qf3 $18 {[%emt 0:08:30]} f5 {[%emt 0:12:23]} (41... Qf6 {keeps fighting.} 42. Qxf6 Nxf6) 42. Bc4 {[%emt 0:07:35]} Kh8 {[%emt 0:13:32]} (42... f4 $142) 43. Bxd5 {[%emt 0:03:40] This pair of bishops is nice.} Rxc1 {[%emt 0:00:33]} 44. Rxc1 {[%emt 0:00:06]} exd5 {[%emt 0:00:03]} 45. Rc7 {[%emt 0:01:20] Threatens to win with Be5.} ({Weaker is} 45. Qxd5 Qxh5 46. Be5 Bd2 $18) 45... Qe6 {[%emt 0:04:04]} 46. h6 {[%emt 0:01:02][%mdl 64] [#] Deflection} Qxh6 {[%emt 0:03:30]} (46... Rf7 {was called for.} 47. Rxf7 Qxf7) 47. Be5 {[%emt 0:01:01]} Rg8 {[%emt 0:00:05]} 48. Qxd5 {[%emt 0:00:43]} Bf8 {[%emt 0:02:40]} 49. Qxa5 {[%emt 0:01:09]} Qg6 {[%emt 0:00:12]} 50. Qd5 {[%emt 0:02:04]} f4 {[%emt 0:01:50]} 51. Bxf4 {[%emt 0:03:24]} Qb1+ {[%emt 0:00:13]} 52. Kh2 {[%emt 0:00:03] Rc8 would be deadly.} Qxb2 {[%emt 0:00:09]} 53. Qf3 {[%emt 0:00:24] Be5 is the strong threat.} Qb6 {[%emt 0:02:33]} 54. Rc6 {[%emt 0:00:13] Against Bd6} Qd8 {[%emt 0:00:36]} 55. Be5 {[%emt 0:00:47] Intending Qh5 and mate.} Qh4+ {[%emt 0:01:37]} 56. Kg1 {[%emt 0:00:19]} Bb4 {[%emt 0:02:39]} 57. Qg3 $2 {[%emt 0:04:21]} (57. Qf7 Qg5 58. Re6) 57... Qe7 {[%emt 0:01:32]} (57... Qxg3 58. Bxg3 Re8) 58. Rc7 {[%emt 0:00:41]} (58. Rh6 $142 Rc8 59. Qg6 Rc1+ 60. Kh2 Qxe5+ 61. dxe5 gxh6 62. Qf6+ Kg8 63. e6) 58... Qf8 {[%emt 0:00:06]} 59. d5 {[%emt 0:01:12]} Be7 {[%emt 0:00:05]} 60. d6 {[%emt 0:00:55]} Bd8 {[%emt 0:04:25]} 61. Rc8 {[%emt 0:01:16]} Qf7 {[%emt 0:00:02]} 62. Qg4 {[%emt 0:00:55]} Rf8 {[%emt 0:02:12]} 63. f3 {[%emt 0:01:43]} h5 {[%emt 0:01:46]} 64. Qh3 {[%emt 0:01:07]} Kg8 {[%emt 0:00:15]} 65. d7 {[%emt 0:00:43] aiming for Bd6.} Qg6 {[%emt 0:00:38] Dodges Bd6} 66. Qg3 {[%emt 0:02:07]} (66. Bc7 $142 Bg5 67. e4) 66... Qf7 {[%emt 0:00:21]} (66... Qxg3 $18 67. Bxg3 Kf7) 67. Bd6 {[%emt 0:01:35]} Qxd7 {[%emt 0:01:17] Black is weak on the dark squares} 68. Bxf8 {[%emt 0:00:04]} Kxf8 {[%emt 0:00:04] KQR-KQB} 69. Qb8 {[%emt 0:00:50]} Qd1+ {[%emt 0:01:29]} 70. Kh2 {[%emt 0:00:05] White mates.} Qe1 {[%emt 0:00:04]} 71. Rxd8+ {[%emt 0:00:15]} Kf7 {[%emt 0:00:11]} 72. Qf4+ {[%emt 0:00:22]} Ke7 {[%emt 0:00:37]} 73. Qf8+ {[%emt 0:00:09]} Ke6 {[%emt 0:00:02]} 74. Rd6+ {[%emt 0:00:08]} Ke5 {[%emt 0:00:00]} 75. Qf4# {[%emt 0:00:07] Weighted Error Value: White=0.13 (very precise) /Black=0.30} 1-0

[Event "European Women-ch 2023"]
[Site "Petrovac"]
[Date "2023.03.23"]
[Round "6.21"]
[White "Popovic, Mateja"]
[Black "Mayrhuber, Nikola"]
[Result "0-1"]
[ECO "E11"]
[WhiteElo "1832"]
[BlackElo "2162"]
[Annotator "TA"]
[PlyCount "74"]
[EventDate "2023.03.15"]
[EventType "swiss"]
[EventCountry "MNE"]
[SourceTitle "playchess.com"]
[Source "ChessBase"]
[SourceQuality "1"]
[TimeControl "40/5400+30:1800+30"]

{[%evp 19,74,-14,14,-42,-47,-27,-17,-30,-25,-21,25,29,21,16,20,29,58,7,0,-42,-44,-36,31,-76,-49,-62,-55,-100,-95,-91,-58,-93,-40,-42,-26,-71,-76,-75,-69,-72,-65,-91,-92,-78,-79,-82,-88,-123,0,-296,-298,-585,-525,-579,-574,-564,-551]} 1. d4 {[%emt 0:00:15]} Nf6 {[%emt 0:00:06]} 2. c4 {[%emt 0:00:07]} e6 {[%emt 0:00:03]} 3. Nf3 {[%emt 0:00:11]} Bb4+ {[%emt 0:00:05]} 4. Nbd2 {[%emt 0:00:11]} b6 {[%emt 0:01:12]} 5. a3 {[%emt 0:02:57]} Bxd2+ {[%emt 0:00:07]} 6. Bxd2 {[%emt 0:00:39]} Bb7 {[%emt 0:00:19]} 7. Bg5 {[%emt 0:00:29]} d6 {[%emt 0:01:40]} 8. e3 {[%emt 0:01:38]} Nbd7 {[%emt 0:00:27]} 9. Be2 {[%emt 0:02:00]} h6 {[%emt 0:01:14]} 10. Bh4 {[%emt 0:00:09]} Qe7 {[%emt 0:00:54]} (10... g5 $5 {[%cal Rg5h4]} 11. Bg3 h5 $15) 11. b4 {[%emt 0:01:50]} (11. Nd2 $11) 11... g5 $15 {[%emt 0:03:51]} 12. Bg3 {[%emt 0:01:18]} Ne4 {[%emt 0:00:07]} 13. O-O {[%emt 0:16:06] The position is equal.} h5 {[%emt 0:04:57]} 14. h4 $1 {[%emt 0:02:54]} Nc3 {[%emt 0:08:37]} (14... Nxg3 $142 15. fxg3 g4) 15. Qd3 $11 {[%emt 0:02:23]} Nxe2+ {[%emt 0:00:09]} 16. Qxe2 {[%emt 0:00:04]} g4 {[%emt 0:04:55]} 17. Nd2 {[%emt 0:02:34][%cal Oc4c5]} Nf8 {[%emt 0:06:55][%cal Bd7f8,Bf8g6,Bg6h4][%mdl 32]} 18. e4 {[%emt 0:08:50]} (18. c5 $14) 18... Ng6 {[%emt 0:01:10]} 19. f3 {[%emt 0:00:10]} Nxh4 {[%emt 0:05:15]} 20. fxg4 {[%emt 0:00:25]} hxg4 {[%emt 0:00:58]} (20... Rg8 $15) 21. Qxg4 {[%emt 0:00:57]} (21. c5 $1 $14 {stays ahead.}) 21... O-O-O {[%emt 0:08:47] Hoping for ...f5.} (21... Kd7 $5 {[%cal Rf7f5]} 22. d5 Rag8 23. Bxh4 (23. Qf4 $2 f5 $19) 23... Rxg4 24. Bxe7 Kxe7 $15) 22. Bxh4 $1 {[%emt 0:03:01]} Rxh4 {[%emt 0:00:45]} 23. Qg7 {[%emt 0:00:24]} Rf8 {[%emt 0:07:14]} 24. Rae1 {[%emt 0:03:21][%cal Ba1e1,Be1e2,Be2f2,Bf2f6][%mdl 32]} Rh5 {[%emt 0:16:46][%cal Bh4h5,Bh5g5,Bg5g2][%mdl 32]} 25. Re2 {[%emt 0:08:50] [#]} Bc6 {[%emt 0:08:11]} (25... Rhh8 $1 $17) 26. d5 $15 {[%emt 0:07:28]} Bd7 {[%emt 0:05:39]} 27. Ref2 {[%emt 0:05:34][%cal Rf2f7]} Rg5 {[%emt 0:03:04]} 28. Qf6 {[%emt 0:01:47]} Qxf6 {[%emt 0:00:14]} 29. Rxf6 {[%emt 0:00:03]} exd5 {[%emt 0:03:49] Strongly threatening ...Rfg8.} 30. exd5 {[%emt 0:00:26]} Rfg8 $36 {[%emt 0:01:45][%mdl 2048] Black is in control.} 31. R1f2 {[%emt 0:00:08]} (31. Rxf7 $2 Rxg2+ 32. Kh1 Rxd2 $19) 31... Bh3 {[%emt 0:01:48][%cal Rh3g2]} 32. Rxf7 {[%emt 0:00:52]} Rxg2+ {[%emt 0:03:13]} 33. Kh1 {[%emt 0:01:47]} Kb7 {[%emt 0:00:40]} (33... R2g3 $17 {...Bg2+ is the strong threat.} 34. Kh2 Rxa3 35. Rf8+ Rxf8 36. Rxf8+ Kb7) 34. Ne4 $2 {[%emt 0:02:24][%mdl 8192] [#]} (34. Rxg2 $1 $11 {and White has nothing to worry.} Rxg2 35. Ne4) 34... R2g6 $1 $19 {[%emt 0:01:15]} 35. Kh2 $2 {[%emt 0:02:18] [#]} (35. Nf6 {keeps fighting.} Rh8 36. Rh7 Rxh7 37. Nxh7) 35... Bf5 $1 {[%emt 0:01:05][%cal Rg6h6][%mdl 512] Black is clearly winning.} 36. Ng3 {[%emt 0:07:26]} (36. Nxd6+ Rxd6) 36... Rh8+ {[%emt 0:00:08]} (36... Rxg3 $2 {is the wrong capture.} 37. R2xf5 Rg2+ 38. Kh3 $19) 37. Kg2 {[%emt 0:00:17]} Be4+ {[%emt 0:00:12] Weighted Error Value: White=0.50/Black=0.18 (very precise)} 0-1

[Event "European Women-ch 2023"]
[Site "Petrovac"]
[Date "2023.03.23"]
[Round "6.22"]
[White "Silva, Mariana Sofia T."]
[Black "Gamal, Alaa"]
[Result "1/2-1/2"]
[ECO "E11"]
[WhiteElo "1920"]
[BlackElo "1748"]
[Annotator "TA"]
[PlyCount "133"]
[EventDate "2023.03.15"]
[EventType "swiss"]
[EventCountry "MNE"]
[SourceTitle "playchess.com"]
[Source "ChessBase"]
[SourceQuality "1"]
[TimeControl "40/5400+30:1800+30"]

{[%evp 19,133,16,17,22,18,29,22,25,25,26,51,43,39,4,4,11,39,32,46,49,54,68,115,10,14,13,15,14,8,0,11,16,61,60,53,56,68,31,37,0,8,0,0,0,0,0,13,10,88,81,80,81,75,76,69,13,15,20,78,72,79,31,77,64,133,118,123,83,78,41,56,32,42,39,160,150,163,118,201,180,207,157,266,0,0,0,0,0,0,0,8,4,9,0,0,0,60,68,88,-54,-58,-75,0,0,0,-6,-8,-492,-485,-473,-473,-733,-725,-787,-731,-591]} 1. d4 {[%emt 0:57:36]} Nf6 {[%emt 0:00:05]} 2. c4 {[%emt 0:00:07]} e6 {[%emt 0:00:10]} 3. g3 {[%emt 0:00:07]} Bb4+ {[%emt 0:00:13]} 4. Bd2 {[%emt 0:00:25]} Qe7 {[%emt 0:01:24]} 5. Bg2 {[%emt 0:01:15]} Bxd2+ {[%emt 0:03:51]} 6. Qxd2 {[%emt 0:00:59]} d6 {[%emt 0:00:19]} 7. Nc3 {[%emt 0:02:36]} e5 {[%emt 0:02:00]} 8. dxe5 {[%emt 0:11:53]} dxe5 {[%emt 0:01:32]} 9. Nf3 {[%emt 0:00:31]} O-O {[%emt 0:00:50]} 10. Rd1 {[%emt 0:05:19]} c6 {[%emt 0:00:56]} 11. Qd6 {[%emt 0:03:08]} Qxd6 {[%emt 0:01:52]} 12. Rxd6 {[%emt 0:00:33]} Re8 {[%emt 0:02:48]} 13. O-O {[%emt 0:06:29] The position is equal.} Bf5 {[%emt 0:00:23]} 14. h3 {[%emt 0:05:03]} h5 {[%emt 0:03:30]} 15. Rfd1 {[%emt 0:04:12]} Nbd7 {[%emt 0:02:14]} 16. b3 {[%emt 0:03:16]} Nc5 {[%emt 0:01:06]} 17. Ng5 {[%emt 0:03:54]} Ne6 {[%emt 0:04:49]} 18. Nxe6 {[%emt 0:01:58]} Bxe6 {[%emt 0:02:59]} 19. Na4 {[%emt 0:00:47][%cal Bc3a4,Ba4c5,Bc5b3,Bb3a5,Ba5c4,Bc4d6][%mdl 32]} Bf5 {[%emt 0:22:54]} 20. Nc5 {[%emt 0:02:09]} Rab8 {[%emt 0:02:54]} (20... Bc8 $1 $14) 21. b4 {[%emt 0:05:48]} (21. Nxb7 $1 $16 Rxb7 22. Bxc6) 21... e4 {[%emt 0:00:52]} 22. e3 {[%emt 0:04:27]} Kf8 {[%emt 0:03:24]} 23. Nb3 {[%emt 0:04:54]} Be6 {[%emt 0:00:57]} 24. Na5 {[%emt 0:01:03]} Ke7 {[%emt 0:02:28]} 25. R6d4 {[%emt 0:02:54]} Bf5 {[%emt 0:01:33]} 26. a3 {[%emt 0:05:07]} Rec8 {[%emt 0:00:27]} 27. c5 {[%emt 0:06:12]} Be6 {[%emt 0:11:23]} 28. Bxe4 {[%emt 0:02:06]} (28. Nc4 {simplifies} Bxc4 29. Rxc4 Rd8 30. Rb1) 28... Bxh3 {[%emt 0:00:11]} 29. Nc4 {[%emt 0:00:32]} Bg4 {[%emt 0:02:10] Black is weak on the dark squares} 30. R1d2 {[%emt 0:00:18]} Nxe4 {[%emt 0:05:21]} 31. Rxe4+ {[%emt 0:00:02]} Be6 {[%emt 0:00:13]} 32. Nd6 {[%emt 0:00:25][%cal Of2f4] aiming for f4!} Rc7 {[%emt 0:00:25]} 33. f4 {[%emt 0:08:17][%cal Bf2f4,Bf4f5][%mdl 32] Strongly threatening f5.} Kf8 {[%emt 0:00:27]} (33... g6 $1 $11) 34. f5 $36 {[%emt 0:01:25][%mdl 2048] White is on the roll.} Bd5 {[%emt 0:00:21]} 35. Rf4 {[%emt 0:00:30] White has more active pieces. The black rooks are badly placed.} f6 {[%emt 0:01:17]} 36. e4 {[%emt 0:00:40]} Bf7 {[%emt 0:00:29]} 37. Kf2 {[%emt 0:00:27]} (37. g4 $14) 37... Rd7 {[%emt 0:02:57]} 38. Rf3 {[%emt 0:00:56]} Rbd8 {[%emt 0:01:34]} (38... b6 $11 {remains equal.}) 39. Rfd3 {[%emt 0:01:02]} b6 {[%emt 0:03:53]} 40. Rb2 {[%emt 0:04:14]} (40. Ke3 $16) 40... Rb8 {[%emt 0:06:48]} (40... g6 $14 {deserves consideration.}) 41. Rdd2 {[%emt 0:01:00]} Rbd8 {[%emt 0:01:15] [#]} ({Black should try} 41... g6 $14) 42. Ke3 $1 {[%emt 0:00:26]} Ke7 {[%emt 0:00:30]} 43. Kf4 {[%emt 0:01:18]} g5+ {[%emt 0:05:17]} 44. fxg6 {[%emt 0:00:13]} (44. Ke3 $5 {[%cal Rd2h2]}) 44... Bxg6 {[%emt 0:00:16]} 45. a4 {[%emt 0:01:36][%cal Ba3a4,Ba4a5,Ba5a6][%mdl 32]} Ke6 {[%emt 0:01:10]} 46. a5 {[%emt 0:04:26]} b5 {[%emt 0:01:33]} ({Better is} 46... Rg8 $14) 47. Rh2 {[%emt 0:02:09]} Rg8 {[%emt 0:00:57]} 48. Rbd2 {[%emt 0:02:06]} Rgd8 {[%emt 0:05:03]} (48... a6 $16 {was worth a try.} 49. Kf3 Rdd8) 49. Rh4 $18 {[%emt 0:04:07]} Rg8 {[%emt 0:04:25]} 50. a6 {[%emt 0:05:20]} Rdg7 {[%emt 0:03:32]} (50... Rgg7 $16 {is a better defense.} 51. Rf2 Rg8) 51. Rh1 $2 {[%emt 0:02:04]} (51. g4 $18) 51... Bh7 $1 $11 {[%emt 0:01:55]} 52. Rh3 {[%emt 0:10:31]} (52. Rxh5 $5 Rg4+ $8 53. Ke3 Rxg3+ 54. Kd4 $11) 52... Rg4+ {[%emt 0:03:07]} 53. Kf3 {[%emt 0:00:10]} R8g5 {[%emt 0:01:49]} 54. Re2 {[%emt 0:01:19]} Bg6 {[%emt 0:00:57]} 55. Kf2 {[%emt 0:01:37]} Ke5 {[%emt 0:02:26]} 56. Re3 {[%emt 0:00:12]} Kd4 {[%emt 0:00:48][%cal Rg6e4]} 57. Rh1 {[%emt 0:00:41]} Ke5 {[%emt 0:02:32]} (57... h4 $1 $11 58. Rxh4 (58. gxh4 Rg2+ 59. Kf1 Kxe3 $11) 58... Rxh4 59. gxh4 Rh5) 58. Nc8 $1 $14 {[%emt 0:00:54]} Rxe4 {[%emt 0:02:25] [#]} 59. Rxe4+ {[%emt 0:00:33]} ({Weaker is} 59. Nxa7 Rxe3 60. Kxe3 Be4 $17) (59. Rhe1 $1 $16 Rf5+ 60. Kg2 Rxe3 61. Rxe3+ Kd4 62. Re7) 59... Bxe4 {[%emt 0:02:08][%mdl 4096] Endgame KRB-KRN} 60. Rh4 {[%emt 0:02:43]} f5 {[%emt 0:00:55]} (60... Rg7 $17) 61. Nxa7 $11 {[%emt 0:00:48]} Rg8 {[%emt 0:00:02]} 62. Rxh5 {[%emt 0:00:31] Threatens to win with Rh6.} Ra8 {[%emt 0:00:02] Inhibits Rh6.} 63. Nxb5 $2 {[%emt 0:00:30][%mdl 8192]} cxb5 $19 {[%emt 0:00:06] Black is clearly winning.} 64. Rh6 {[%emt 0:00:19]} Kd4 {[%emt 0:01:21] ...Kc4 would be deadly.} 65. Rb6 {[%emt 0:00:30]} (65. Rd6+ $142 Kc4 66. Ke3) 65... Kc4 {[%emt 0:00:07]} 66. c6 {[%emt 0:00:17]} Kxb4 {[%emt 0:01:59]} 67. c7 {[%emt 0:01:23][%mdl 32768] Quite a comeback for Black.   Weighted Error Value: White=0.22 (precise) /Black=0.23 (precise) . An unexpected result.} 1/2-1/2

[Event "European Women-ch 2023"]
[Site "Petrovac"]
[Date "2023.03.23"]
[Round "6.22"]
[White "Silva, Ana Ines Teixeira Da"]
[Black "Kulon, Klaudia"]
[Result "0-1"]
[ECO "B22"]
[WhiteElo "1792"]
[BlackElo "2290"]
[Annotator "TA"]
[PlyCount "66"]
[EventDate "2023.03.15"]
[EventType "swiss"]
[EventCountry "MNE"]
[SourceTitle "playchess.com"]
[Source "ChessBase"]
[SourceQuality "1"]
[TimeControl "40/5400+30:1800+30"]

{[%evp 16,66,31,17,16,31,19,0,47,12,7,-74,-15,-8,-14,-24,-9,-17,-6,-98,-104,-94,-105,-187,-177,-226,-228,-483,-444,-729,-735,-1112,-987,-957,-937,-922,-921,-908,-921,-915,-911,-860,-876,-897,-685,-679,-668,-1051,-1025,-2793,-2576,-1906,-1816]} 1. e4 {[%emt 0:00:03]} c5 {[%emt 0:00:04]} 2. c3 {[%emt 0:00:12]} Nf6 {[%emt 0:00:06]} 3. e5 {[%emt 0:00:10]} Nd5 {[%emt 0:00:04]} 4. Nf3 {[%emt 0:00:11]} Nc6 {[%emt 0:00:05]} 5. Bc4 {[%emt 0:00:22]} Nb6 {[%emt 0:00:06]} 6. Bb3 {[%emt 0:00:08]} d5 {[%emt 0:00:15]} 7. exd6 {[%emt 0:00:24]} c4 {[%emt 0:00:05]} 8. Bc2 {[%emt 0:01:17]} Qxd6 {[%emt 0:00:06]} 9. O-O {[%emt 0:00:40]} (9. Na3 {keeps more tension.} Bg4 10. b3 Qe6+ 11. Qe2) 9... g6 {[%emt 0:00:05]} 10. b3 {[%emt 0:02:22]} Bg7 {[%emt 0:00:05]} 11. Qe2 {[%emt 0:08:12]} Be6 {[%emt 0:02:57]} (11... Qe6 $11 12. Qd1 Nb4) 12. Ng5 {[%emt 0:12:45]} Bd5 {[%emt 0:01:27]} 13. Ne4 {[%emt 0:01:23]} (13. Na3 $11) 13... Qc7 {[%emt 0:03:46] Black is more active.} ({Black should play} 13... Qe5 $17) 14. Na3 $11 {[%emt 0:03:43][%cal Rb3c4]} cxb3 {[%emt 0:00:45]} 15. axb3 {[%emt 0:00:43]} O-O {[%emt 0:04:28]} 16. d4 {[%emt 0:08:30]} a6 $36 {[%emt 0:00:25][%mdl 2048] Prevents Nb5. White should prevent ...f5. White is under pressure.} 17. Bg5 {[%emt 0:25:28] [#]} (17. f4 $11 {keeps the balance.}) 17... f5 $1 $17 {[%emt 0:05:23] White is now going downhill.} 18. Nc5 {[%emt 0:07:10]} e5 {[%emt 0:01:02]} 19. dxe5 {[%emt 0:03:14]} (19. Nc4 $17) 19... Nxe5 $19 {[%emt 0:02:03]} (19... Bxe5 20. Rad1 $17) 20. b4 {[%emt 0:01:30]} (20. Nd3 $142) 20... Ng4 {[%emt 0:07:56][%csl Gg4][%cal Rc7h2]} 21. f4 $2 {[%emt 0:02:48]} (21. g3 {only move.}) 21... Bxc3 {[%emt 0:04:34] Black is clearly winning.} 22. Ne6 {[%emt 0:04:23]} (22. Qd3 $142 Bxa1 23. Bb3) 22... Qc6 {[%emt 0:10:25]} 23. Nxf8 {[%emt 0:01:03]} Bd4+ {[%emt 0:00:17]} 24. Kh1 {[%emt 0:00:57]} Re8 {[%emt 0:00:28]} (24... Kxf8 $2 {loses.} 25. Be7+ Kf7 26. Rad1 $19) 25. Be4 {[%emt 0:07:51]} Bxe4 {[%emt 0:06:20]} ({Not} 25... Rxf8 26. Rad1 Bxe4 27. Rxd4 $11) 26. Rac1 {[%emt 0:01:16] White is weak on the light squares} Nf2+ {[%emt 0:00:42]} 27. Qxf2 {[%emt 0:01:17]} Bxf2 {[%emt 0:00:05][%csl Gc6][%cal Re4g2,Bd4f2,Bf2e1,Be1c3][%mdl 32] [#] This pair of bishops is nice.} 28. Rxc6 {[%emt 0:00:07]} Bxc6 {[%emt 0:00:03]} 29. Bh6 {[%emt 0:01:18]} Be1 {[%emt 0:00:07] Strongly threatening ...Re2.} 30. Nc2 {[%emt 0:00:58]} Bc3 {[%emt 0:00:03] ...Re2 would be deadly.} 31. h3 {[%emt 0:02:04]} Re2 {[%emt 0:01:11]} 32. Rc1 {[%emt 0:03:02]} Rxg2 {[%emt 0:00:19]} 33. Nd4 {[%emt 0:00:40]} Rc2+ {[%emt 0:00:20][%mdl 64] Discovered Attack. An entertaining game by Kulon.   Weighted Error Value: White=1.04/Black=0.13 (very precise)} ({Worse is} 33... Bxb4 34. Nxc6 Bxf8 35. Kxg2 Bxh6 36. Ne7+ Kf8 37. Rc7 $11) 0-1